fUSD/lending_fUSD_20260702
["ID","MTS","AMOUNT","RATE_DAILY","PERIOD"]
[426907717,1783002661000,-536.83065571,0.00033421,2]
[426907728,1783002661000,-300.258072,0.00033421,2]
[426907725,1783002661000,-300.0,0.00033421,2]
[426907733,1783002661000,-514.04447898,0.00033421,2]
[426907745,1783002661000,-151.0,0.00033421,7]
[426907738,1783002661000,-151.0,0.00033421,7]
[426907735,1783002661000,-300.0,0.00033421,2]
[426907741,1783002661000,-151.0,0.00033421,7]
[426907744,1783002661000,-151.0,0.00033421,7]
[426907736,1783002661000,-300.0,0.00033421,2]
[426907743,1783002661000,-151.0,0.00033421,7]
[426907682,1783002661000,-311.25771399,0.00033421,2]
[426907737,1783002661000,-300.0,0.00033421,2]
[426907734,1783002661000,-300.0,0.00033421,2]
[426907740,1783002661000,-151.0,0.00033421,7]
[426907729,1783002661000,-514.02377053,0.00033421,2]
[426907715,1783002661000,-300.0,0.00033421,2]
[426907742,1783002661000,-151.0,0.00033421,7]
[426907710,1783002661000,-415.17734706,0.00033421,2]
[426907711,1783002661000,-514.02377053,0.00033421,2]
[426907684,1783002661000,-514.02377053,0.00033421,2]
[426907687,1783002661000,-446.37037068,0.00033421,2]
[426907691,1783002661000,-730.20238391,0.00033421,2]
[426907688,1783002661000,-300.0,0.00033421,2]
[426907690,1783002661000,-536.83065571,0.00033421,2]
[426907686,1783002661000,-300.0,0.00033421,2]
[426907689,1783002661000,-607.90818736,0.00033421,2]
[426907693,1783002661000,-302.19910179,0.00033421,2]
[426907705,1783002661000,-536.83065571,0.00033421,2]
[426907703,1783002661000,-356.27009082,0.00033421,2]
[426907704,1783002661000,-607.90818736,0.00033421,2]
[426907692,1783002661000,-404.53851179,0.00033421,2]
[426907694,1783002661000,-529.3542381,0.00033421,2]
[426907685,1783002661000,-454.31833835,0.00033421,2]
[426907696,1783002661000,-1807.51296117,0.00033421,2]
[426907695,1783002661000,-318.43394879,0.00033421,2]
[426907707,1783002661000,-603.53560184,0.00033421,2]
[426907712,1783002661000,-454.31833835,0.00033421,2]
[426907709,1783002661000,-796.4200569,0.00033421,2]
[426907708,1783002661000,-576.50510998,0.00033421,2]
[426907706,1783002661000,-302.19910179,0.00033421,2]
[426907716,1783002661000,-607.90818736,0.00033421,2]
[426907702,1783002661000,-300.0,0.00033421,2]
[426907697,1783002661000,-576.50510998,0.00033421,2]
[426907701,1783002661000,-454.31833835,0.00033421,2]
[426907713,1783002661000,-300.0,0.00033421,2]
[426907700,1783002661000,-514.02377053,0.00033421,2]
[426907698,1783002661000,-597.3150425,0.00033421,2]
[426907699,1783002661000,-311.257714,0.00033421,2]
[426907785,1783002662000,-474.35150624,0.00033457,2]
[426907786,1783002662000,-300.17270393,0.00033457,2]
[426907773,1783002662000,-250.0,0.0003343,7]
[426907775,1783002662000,-515.45708154,0.00033457,2]
[426907778,1783002662000,-300.1726804,0.00033457,2]
[426907779,1783002662000,-311.25233978,0.00033457,2]
[426907780,1783002662000,-300.17268041,0.00033457,2]
[426907782,1783002662000,-300.1726804,0.00033457,2]
[426907777,1783002662000,-386.58279692,0.00033457,2]
[426907781,1783002662000,-569.06844999,0.00033457,2]
[426907783,1783002662000,-300.0,0.00033457,2]
[426907776,1783002662000,-300.0,0.00033457,2]
[426907792,1783002662000,-452.88695909,0.00033457,2]
[426907789,1783002662000,-1101.26754386,0.00033457,2]
[426907794,1783002662000,-300.08634786,0.00033457,2]
[426907788,1783002662000,-300.0,0.00033457,2]
[426907796,1783002662000,-300.17265618,0.00033457,2]
[426907795,1783002662000,-345.8584579,0.00033457,2]
[426907790,1783002662000,-516.97265473,0.00033457,2]
[426907793,1783002662000,-810.67577168,0.00033457,2]
[426907791,1783002662000,-300.0,0.00033457,2]
[426907808,1783002662000,-300.1726804,0.00033457,2]
[426907798,1783002662000,-300.17265615,0.00033457,2]
[426907784,1783002662000,-685.46452325,0.00033457,2]
[426907787,1783002662000,-300.0,0.00033457,2]
[426907774,1783002662000,-218.00953006,0.00033432,2]
[426907753,1783002662000,-151.0,0.00033421,7]
[426907772,1783002662000,-151.0,0.00033424,7]
[426907746,1783002662000,-151.0,0.00033421,7]
[426907754,1783002662000,-151.0,0.00033421,7]
[426907759,1783002662000,-201.288471,0.00033421,7]
[426907752,1783002662000,-151.0,0.00033421,7]
[426907751,1783002662000,-151.0,0.00033421,7]
[426907750,1783002662000,-151.0,0.00033421,7]
[426907749,1783002662000,-151.0,0.00033421,7]
[426907748,1783002662000,-151.0,0.00033421,7]
[426907747,1783002662000,-151.0,0.00033421,7]
[426907757,1783002662000,-201.288471,0.00033421,7]
[426907756,1783002662000,-151.0,0.00033421,7]
[426907797,1783002662000,-300.17265615,0.00033457,2]
[426907758,1783002662000,-151.0,0.00033421,7]
[426907763,1783002662000,-649.2014577,0.00033424,60]
[426907760,1783002662000,-201.288471,0.00033421,7]
[426907764,1783002662000,-156.5926044,0.00033424,60]
[426907762,1783002662000,-500.0,0.00033424,60]
[426907766,1783002662000,-243.0690201,0.00033424,60]
[426907765,1783002662000,-292.9445201,0.00033424,60]
[426907761,1783002662000,-201.288471,0.00033421,7]
[426907767,1783002662000,-477.8947389,0.00033424,60]
[426907768,1783002662000,-249.0017556,0.00033424,60]
[426907770,1783002662000,-238.85,0.00033424,4]
[426907769,1783002662000,-158.7,0.00033424,120]
[426907755,1783002662000,-151.0,0.00033421,7]
[426907804,1783002662000,-300.0,0.00033457,2]
[426907771,1783002662000,-151.0,0.00033424,7]
[426907801,1783002662000,-300.0,0.00033457,2]
[426907822,1783002662000,-495.33889549,0.00033457,2]
[426907833,1783002662000,-300.00000001,0.00033457,2]
[426907834,1783002662000,-300.0,0.00033457,2]
[426907835,1783002662000,-302.19388477,0.00033457,2]
[426907838,1783002662000,-300.25863653,0.00033457,2]
[426907836,1783002662000,-300.00000002,0.00033457,2]
[426907837,1783002662000,-300.00000001,0.00033457,2]
[426907839,1783002662000,-300.0,0.00033457,2]
[426907845,1783002662000,-1807.48175247,0.00033457,2]
[426907843,1783002662000,-300.0,0.00033457,2]
[426907841,1783002662000,-300.0,0.00033457,2]
[426907826,1783002662000,-300.0,0.00033457,2]
[426907840,1783002662000,-300.0,0.00033457,2]
[426907842,1783002662000,-300.0,0.00033457,2]
[426907847,1783002662000,-300.0,0.00033457,2]
[426907846,1783002662000,-576.50510998,0.00033457,2]
[426907848,1783002662000,-311.19276236,0.00033457,2]
[426907853,1783002662000,-584.85636615,0.00033457,2]
[426907850,1783002662000,-300.0,0.00033457,2]
[426907852,1783002662000,-300.0,0.00033457,2]
[426907849,1783002662000,-522.91557312,0.00033457,2]
[426907854,1783002662000,-454.31049333,0.00033457,2]
[426907851,1783002662000,-300.1726804,0.00033457,2]
[426907855,1783002662000,-300.0,0.00033457,2]
[426907844,1783002662000,-954.21128528,0.00033457,2]
[426907827,1783002662000,-300.17265619,0.00033457,2]
[426907799,1783002662000,-300.0,0.00033457,2]
[426907829,1783002662000,-300.0,0.00033457,2]
[426907832,1783002662000,-300.0,0.00033457,2]
[426907800,1783002662000,-400.74905313,0.00033457,2]
[426907807,1783002662000,-528.70775159,0.00033457,2]
[426907803,1783002662000,-300.1726804,0.00033457,2]
[426907805,1783002662000,-568.96463143,0.00033457,2]
[426907802,1783002662000,-954.39329123,0.00033457,2]
[426907809,1783002662000,-300.0,0.00033457,2]
[426907820,1783002662000,-300.0,0.00033457,2]
[426907811,1783002662000,-513.90356641,0.00033457,2]
[426907810,1783002662000,-300.1726804,0.00033457,2]
[426907818,1783002662000,-1101.26754386,0.00033457,2]
[426907812,1783002662000,-300.0,0.00033457,2]
[426907806,1783002662000,-300.0,0.00033457,2]
[426907816,1783002662000,-300.0,0.00033457,2]
[426907813,1783002662000,-300.0,0.00033457,2]
[426907825,1783002662000,-607.77666574,0.00033457,2]
[426907823,1783002662000,-300.0,0.00033457,2]
[426907830,1783002662000,-716.05730213,0.00033457,2]
[426907831,1783002662000,-300.17265618,0.00033457,2]
[426907828,1783002662000,-300.17265618,0.00033457,2]
[426907821,1783002662000,-300.0,0.00033457,2]
[426907815,1783002662000,-300.0,0.00033457,2]
[426907817,1783002662000,-300.0,0.00033457,2]
[426907814,1783002662000,-300.0,0.00033457,2]
[426907819,1783002662000,-300.0,0.00033457,2]
[426907824,1783002662000,-300.25808023,0.00033457,2]
[426907879,1783002663000,-1807.13706231,0.00033457,2]
[426907871,1783002663000,-300.0,0.00033457,2]
[426907878,1783002663000,-300.0,0.00033457,2]
[426907870,1783002663000,-536.73291709,0.00033457,2]
[426907873,1783002663000,-302.13019248,0.00033457,2]
[426907872,1783002663000,-300.17265615,0.00033457,2]
[426907882,1783002663000,-584.47966894,0.00033457,2]
[426907883,1783002663000,-454.22353241,0.00033457,2]
[426907890,1783002663000,-300.54697162,0.00033457,2]
[426907892,1783002663000,-300.0,0.00033457,2]
[426907886,1783002663000,-446.17429553,0.00033457,2]
[426907885,1783002663000,-300.4691276,0.00033457,2]
[426907891,1783002663000,-300.0,0.00033457,2]
[426907877,1783002663000,-300.1726804,0.00033457,2]
[426907884,1783002663000,-300.0,0.00033457,2]
[426907876,1783002663000,-300.1726722,0.00033457,2]
[426907860,1783002663000,-300.0,0.00033457,2]
[426907874,1783002663000,-300.0,0.00033457,2]
[426907856,1783002663000,-300.0,0.00033457,2]
[426907857,1783002663000,-446.17429552,0.00033457,2]
[426907859,1783002663000,-300.0,0.00033457,2]
[426907887,1783002663000,-300.8698646,0.00033457,2]
[426907863,1783002663000,-300.08634002,0.00033457,2]
[426907858,1783002663000,-300.0,0.00033457,2]
[426907862,1783002663000,-300.39599614,0.00033457,2]
[426907861,1783002663000,-1101.26754386,0.00033457,2]
[426907867,1783002663000,-427.40184329,0.00033457,2]
[426907864,1783002663000,-495.23658282,0.00033457,2]
[426907865,1783002663000,-300.0,0.00033457,2]
[426907868,1783002663000,-300.0,0.00033457,2]
[426907866,1783002663000,-300.1726722,0.00033457,2]
[426907869,1783002663000,-547.97675875,0.00033457,2]
[426907875,1783002663000,-300.17265615,0.00033457,2]
[426907880,1783002663000,-576.37467972,0.00033457,2]
[426907889,1783002663000,-1101.26754386,0.00033457,2]
[426907881,1783002663000,-300.1726804,0.00033457,2]
[426907893,1783002663000,-300.0,0.00033457,2]
[426907912,1783002663000,-2446.977,0.000335,30]
[426907907,1783002663000,-3129.66,0.000335,20]
[426907914,1783002663000,-401.4263,0.000335,10]
[426907917,1783002663000,-162.02,0.00028688,30]
[426907916,1783002663000,-1780.8007718,0.000335,30]
[426907919,1783002663000,-203.8140569,0.0003199,2]
[426907918,1783002663000,-900.30816214,0.000335,30]
[426907921,1783002663000,-259.7,0.000335,30]
[426907922,1783002663000,-203.8140569,0.0003299,2]
[426907923,1783002663000,-3943.80638797,0.000335,30]
[426907924,1783002663000,-401.4263,0.000335,20]
[426907927,1783002663000,-1628.975,0.000335,30]
[426907926,1783002663000,-609.92612117,0.000335,30]
[426907925,1783002663000,-7698.472408,0.000335,30]
[426907888,1783002663000,-300.0,0.00033457,2]
[426907913,1783002663000,-2446.97,0.000335,10]
[426907911,1783002663000,-2446.977,0.000335,30]
[426907920,1783002663000,-272.42940219,0.000335,30]
[426907910,1783002663000,-1201.99,0.000335,30]
[426907894,1783002663000,-300.0,0.00033457,2]
[426907915,1783002663000,-7115.8511759,0.000335,30]
[426907905,1783002663000,-3129.668,0.000335,20]
[426907903,1783002663000,-1239.42754462,0.000335,2]
[426907904,1783002663000,-1000.0,0.000335,30]
[426907898,1783002663000,-300.1726722,0.00033457,2]
[426907895,1783002663000,-300.17268824,0.00033457,2]
[426907901,1783002663000,-208.27771909,0.00033479,30]
[426907896,1783002663000,-300.0,0.00033457,2]
[426907897,1783002663000,-303.96884819,0.00033457,2]
[426907899,1783002663000,-300.1726804,0.00033457,2]
[426907900,1783002663000,-1109.68,0.00033473,7]
[426907902,1783002663000,-150.0,0.00033486,30]
[426907908,1783002663000,-1201.995,0.000335,20]
[426907909,1783002663000,-1201.995,0.000335,30]
[426907906,1783002663000,-3129.668,0.000335,10]
[426907961,1783002664000,-151.0,0.00033778,7]
[426907956,1783002664000,-151.0,0.00033778,7]
[426907958,1783002664000,-151.0,0.00033778,7]
[426907957,1783002664000,-151.0,0.00033778,7]
[426907952,1783002664000,-151.0,0.00033778,7]
[426907959,1783002664000,-151.0,0.00033778,7]
[426907962,1783002664000,-417.0192,0.00033778,7]
[426907954,1783002664000,-151.0,0.00033778,7]
[426907953,1783002664000,-151.0,0.00033778,7]
[426907955,1783002664000,-151.0,0.00033778,7]
[426907974,1783002664000,-151.0,0.00033778,7]
[426907967,1783002664000,-554.016567,0.00033778,7]
[426907969,1783002664000,-151.0,0.00033778,7]
[426907965,1783002664000,-417.0192,0.00033778,7]
[426907968,1783002664000,-554.016567,0.00033778,7]
[426907966,1783002664000,-554.016567,0.00033778,7]
[426907964,1783002664000,-417.0192,0.00033778,7]
[426907975,1783002664000,-220.040966,0.00033778,7]
[426907960,1783002664000,-151.0,0.00033778,7]
[426907971,1783002664000,-220.040966,0.00033778,7]
[426907963,1783002664000,-417.0192,0.00033778,7]
[426907950,1783002664000,-151.0,0.00033778,7]
[426907937,1783002664000,-800.0,0.000335,5]
[426907946,1783002664000,-208.27771909,0.00033616,30]
[426907972,1783002664000,-151.0,0.00033778,7]
[426907929,1783002664000,-296.78,0.000335,30]
[426907928,1783002664000,-485.29999995,0.000335,30]
[426907931,1783002664000,-3656.14,0.0003288,10]
[426907930,1783002664000,-640.0,0.00029,2]
[426907932,1783002664000,-4417.70547088,0.000335,30]
[426907934,1783002664000,-15137.15,0.000335,20]
[426907936,1783002664000,-800.0,0.000335,5]
[426907935,1783002664000,-800.0,0.000335,5]
[426907933,1783002664000,-15137.159,0.000335,10]
[426907938,1783002664000,-800.0,0.000335,5]
[426907941,1783002664000,-159.08,0.000335,7]
[426907942,1783002664000,-463.92274305,0.00033534,2]
[426907943,1783002664000,-154.8976,0.00033566,2]
[426907944,1783002664000,-548.89,0.00033581,3]
[426907940,1783002664000,-1461.01,0.000335,7]
[426907949,1783002664000,-163142.4,0.00033778,30]
[426907948,1783002664000,-208.27771909,0.00033726,30]
[426907945,1783002664000,-569.45,0.00033585,30]
[426907939,1783002664000,-1802.54,0.000335,2]
[426907947,1783002664000,-350.0,0.00033665,2]
[426907951,1783002664000,-151.0,0.00033778,7]
[426907970,1783002664000,-554.016567,0.00033778,7]
[426907998,1783002664000,-151.0,0.00033778,7]
[426907988,1783002664000,-323.387558,0.00033778,7]
[426908003,1783002664000,-151.0,0.00033778,7]
[426908013,1783002664000,-2178.627113,0.00033778,5]
[426908006,1783002664000,-368.571422,0.00033778,7]
[426908002,1783002664000,-151.0,0.00033778,7]
[426908004,1783002664000,-368.571422,0.00033778,7]
[426908014,1783002664000,-151.0,0.00033778,7]
[426908005,1783002664000,-368.571422,0.00033778,7]
[426908011,1783002664000,-151.0,0.00033778,7]
[426908008,1783002664000,-368.571422,0.00033778,7]
[426908009,1783002664000,-151.0,0.00033778,7]
[426908007,1783002664000,-2178.627113,0.00033778,5]
[426908010,1783002664000,-2178.627113,0.00033778,5]
[426908015,1783002664000,-151.0,0.00033778,7]
[426908016,1783002664000,-151.0,0.00033778,7]
[426908017,1783002664000,-288.345157,0.00033778,7]
[426908018,1783002664000,-151.0,0.00033778,7]
[426908019,1783002664000,-151.0,0.00033778,7]
[426908020,1783002664000,-2178.627113,0.00033778,5]
[426908022,1783002664000,-288.345157,0.00033778,7]
[426908021,1783002664000,-151.0,0.00033778,7]
[426907973,1783002664000,-220.040966,0.00033778,7]
[426907997,1783002664000,-151.0,0.00033778,7]
[426907999,1783002664000,-151.0,0.00033778,7]
[426908012,1783002664000,-288.345157,0.00033778,7]
[426907995,1783002664000,-175.371224,0.00033778,7]
[426907987,1783002664000,-151.0,0.00033778,7]
[426907996,1783002664000,-151.0,0.00033778,7]
[426907977,1783002664000,-151.0,0.00033778,7]
[426907976,1783002664000,-220.040966,0.00033778,7]
[426907978,1783002664000,-240.005856,0.00033778,7]
[426907979,1783002664000,-175.236009,0.00033778,7]
[426907982,1783002664000,-240.005856,0.00033778,7]
[426907980,1783002664000,-240.005856,0.00033778,7]
[426907983,1783002664000,-151.0,0.00033778,7]
[426907984,1783002664000,-151.0,0.00033778,7]
[426907981,1783002664000,-240.005856,0.00033778,7]
[426908000,1783002664000,-151.0,0.00033778,7]
[426907986,1783002664000,-151.0,0.00033778,7]
[426907991,1783002664000,-323.387558,0.00033778,7]
[426907990,1783002664000,-323.387558,0.00033778,7]
[426907989,1783002664000,-323.387558,0.00033778,7]
[426907992,1783002664000,-175.371224,0.00033778,7]
[426908001,1783002664000,-151.0,0.00033778,7]
[426907985,1783002664000,-151.0,0.00033778,7]
[426907993,1783002664000,-175.371224,0.00033778,7]
[426907994,1783002664000,-175.371224,0.00033778,7]
[426908060,1783002665000,-344.365851,0.00033778,7]
[426908064,1783002665000,-832.92669187,0.00033778,7]
[426908063,1783002665000,-203.70983213,0.00033778,7]
[426908058,1783002665000,-810.877862,0.00033778,7]
[426908061,1783002665000,-344.365851,0.00033778,7]
[426908057,1783002665000,-342.459764,0.00033778,7]
[426908065,1783002665000,-151.0,0.00033778,7]
[426908062,1783002665000,-1036.636524,0.00033778,7]
[426908059,1783002665000,-342.459764,0.00033778,7]
[426908054,1783002665000,-187.57296,0.00033778,7]
[426908055,1783002665000,-344.365851,0.00033778,7]
[426908056,1783002665000,-810.877862,0.00033778,7]
[426908068,1783002665000,-151.0,0.00033778,7]
[426908075,1783002665000,-158.603041,0.00033778,7]
[426908066,1783002665000,-1036.636524,0.00033778,7]
[426908076,1783002665000,-175.484455,0.00033778,7]
[426908072,1783002665000,-151.0,0.00033778,7]
[426908070,1783002665000,-151.0,0.00033778,7]
[426908077,1783002665000,-158.603041,0.00033778,7]
[426908078,1783002665000,-175.484455,0.00033778,7]
[426908067,1783002665000,-1036.636524,0.00033778,7]
[426908071,1783002665000,-151.0,0.00033778,7]
[426908074,1783002665000,-175.484455,0.00033778,7]
[426908081,1783002665000,-158.603041,0.00033778,7]
[426908049,1783002665000,-342.459764,0.00033778,7]
[426908079,1783002665000,-158.603041,0.00033778,7]
[426908069,1783002665000,-151.0,0.00033778,7]
[426908048,1783002665000,-151.0,0.00033778,7]
[426908031,1783002665000,-151.0,0.00033778,7]
[426908047,1783002665000,-810.877862,0.00033778,7]
[426908083,1783002665000,-151.0,0.00033778,7]
[426908027,1783002665000,-151.0,0.00033778,7]
[426908023,1783002665000,-151.0,0.00033778,7]
[426908025,1783002665000,-188.927538,0.00033778,7]
[426908024,1783002665000,-288.345157,0.00033778,7]
[426908028,1783002665000,-249.790099,0.00033778,7]
[426908026,1783002665000,-151.0,0.00033778,7]
[426908033,1783002665000,-151.0,0.00033778,7]
[426908029,1783002665000,-151.0,0.00033778,7]
[426908030,1783002665000,-151.0,0.00033778,7]
[426908032,1783002665000,-151.0,0.00033778,7]
[426908034,1783002665000,-151.0,0.00033778,7]
[426908038,1783002665000,-330.683393,0.00033778,7]
[426908036,1783002665000,-330.683393,0.00033778,7]
[426908035,1783002665000,-330.683393,0.00033778,7]
[426908039,1783002665000,-151.0,0.00033778,7]
[426908037,1783002665000,-151.0,0.00033778,7]
[426908041,1783002665000,-298.979584,0.00033778,7]
[426908040,1783002665000,-151.0,0.00033778,7]
[426908052,1783002665000,-810.877862,0.00033778,7]
[426908042,1783002665000,-330.683393,0.00033778,7]
[426908043,1783002665000,-151.0,0.00033778,7]
[426908051,1783002665000,-344.365851,0.00033778,7]
[426908053,1783002665000,-342.459764,0.00033778,7]
[426908044,1783002665000,-187.57296,0.00033778,7]
[426908046,1783002665000,-187.57296,0.00033778,7]
[426908045,1783002665000,-151.0,0.00033778,7]
[426908050,1783002665000,-187.57296,0.00033778,7]
[426908084,1783002665000,-164.528225,0.00033778,7]
[426908073,1783002665000,-151.0,0.00033778,7]
[426908085,1783002665000,-151.0,0.00033778,7]
[426908114,1783002665000,-238.129684,0.00033778,7]
[426908122,1783002665000,-151.0,0.00033778,7]
[426908121,1783002665000,-151.0,0.00033778,7]
[426908119,1783002665000,-151.0,0.00033778,7]
[426908118,1783002665000,-238.129684,0.00033778,7]
[426908117,1783002665000,-238.129684,0.00033778,7]
[426908120,1783002665000,-151.0,0.00033778,7]
[426908127,1783002665000,-151.0,0.00033778,7]
[426908126,1783002665000,-231.928978,0.00033778,7]
[426908124,1783002665000,-151.0,0.00033778,7]
[426908131,1783002665000,-151.0,0.00033778,7]
[426908125,1783002665000,-151.0,0.00033778,7]
[426908130,1783002665000,-231.928978,0.00033778,7]
[426908115,1783002665000,-151.0,0.00033778,7]
[426908128,1783002665000,-231.928978,0.00033778,7]
[426908133,1783002665000,-231.928978,0.00033778,7]
[426908129,1783002665000,-151.0,0.00033778,7]
[426908132,1783002665000,-151.0,0.00033778,7]
[426908135,1783002665000,-279.027598,0.00033778,7]
[426908137,1783002665000,-151.0,0.00033778,7]
[426908136,1783002665000,-279.027598,0.00033778,7]
[426908138,1783002665000,-151.0,0.00033778,7]
[426908139,1783002665000,-279.027598,0.00033778,7]
[426908140,1783002665000,-151.0,0.00033778,7]
[426908143,1783002665000,-157.710346,0.00033778,7]
[426908141,1783002665000,-151.0,0.00033778,7]
[426908142,1783002665000,-151.0,0.00033778,7]
[426908080,1783002665000,-175.484455,0.00033778,7]
[426908134,1783002665000,-279.027598,0.00033778,7]
[426908116,1783002665000,-238.129684,0.00033778,7]
[426908093,1783002665000,-151.0,0.00033778,7]
[426908123,1783002665000,-151.0,0.00033778,7]
[426908086,1783002665000,-151.0,0.00033778,7]
[426908082,1783002665000,-164.528225,0.00033778,7]
[426908087,1783002665000,-164.528225,0.00033778,7]
[426908088,1783002665000,-151.0,0.00033778,7]
[426908090,1783002665000,-164.528225,0.00033778,7]
[426908112,1783002665000,-151.0,0.00033778,7]
[426908092,1783002665000,-151.0,0.00033778,7]
[426908089,1783002665000,-151.0,0.00033778,7]
[426908097,1783002665000,-194.823168,0.00033778,7]
[426908098,1783002665000,-151.0,0.00033778,7]
[426908094,1783002665000,-151.0,0.00033778,7]
[426908099,1783002665000,-194.823168,0.00033778,7]
[426908096,1783002665000,-151.0,0.00033778,7]
[426908091,1783002665000,-151.0,0.00033778,7]
[426908105,1783002665000,-171.418965,0.00033778,7]
[426908113,1783002665000,-151.0,0.00033778,7]
[426908095,1783002665000,-194.823168,0.00033778,7]
[426908107,1783002665000,-171.418965,0.00033778,7]
[426908110,1783002665000,-235.236658,0.00033778,7]
[426908104,1783002665000,-171.418965,0.00033778,7]
[426908103,1783002665000,-234.001863,0.00033778,7]
[426908102,1783002665000,-151.0,0.00033778,7]
[426908100,1783002665000,-194.823168,0.00033778,7]
[426908108,1783002665000,-235.236658,0.00033778,7]
[426908109,1783002665000,-171.418965,0.00033778,7]
[426908101,1783002665000,-151.0,0.00033778,7]
[426908106,1783002665000,-235.236658,0.00033778,7]
[426908111,1783002665000,-235.236658,0.00033778,7]
[426908164,1783002666000,-151.0,0.00033778,7]
[426908166,1783002666000,-151.0,0.00033778,7]
[426908163,1783002666000,-151.0,0.00033778,7]
[426908170,1783002666000,-151.0,0.00033778,7]
[426908168,1783002666000,-151.0,0.00033778,7]
[426908165,1783002666000,-187.185569,0.00033778,7]
[426908167,1783002666000,-151.0,0.00033778,7]
[426908171,1783002666000,-151.0,0.00033778,7]
[426908186,1783002666000,-201.288471,0.00033778,7]
[426908169,1783002666000,-151.0,0.00033778,7]
[426908172,1783002666000,-260.628831,0.00033778,7]
[426908177,1783002666000,-151.0,0.00033778,7]
[426908181,1783002666000,-151.0,0.00033778,7]
[426908176,1783002666000,-278.494994,0.00033778,7]
[426908187,1783002666000,-151.0,0.00033778,7]
[426908174,1783002666000,-151.0,0.00033778,7]
[426908173,1783002666000,-151.0,0.00033778,7]
[426908175,1783002666000,-151.0,0.00033778,7]
[426908148,1783002666000,-151.0,0.00033778,7]
[426908151,1783002666000,-151.0,0.00033778,7]
[426908149,1783002666000,-209.189016,0.00033778,7]
[426908146,1783002666000,-157.710346,0.00033778,7]
[426908144,1783002666000,-151.0,0.00033778,7]
[426908147,1783002666000,-151.0,0.00033778,7]
[426908145,1783002666000,-157.710346,0.00033778,7]
[426908178,1783002666000,-151.0,0.00033778,7]
[426908160,1783002666000,-151.0,0.00033778,7]
[426908156,1783002666000,-151.0,0.00033778,7]
[426908152,1783002666000,-151.0,0.00033778,7]
[426908153,1783002666000,-151.0,0.00033778,7]
[426908162,1783002666000,-151.0,0.00033778,7]
[426908158,1783002666000,-151.0,0.00033778,7]
[426908157,1783002666000,-151.0,0.00033778,7]
[426908159,1783002666000,-151.0,0.00033778,7]
[426908155,1783002666000,-151.0,0.00033778,7]
[426908154,1783002666000,-151.0,0.00033778,7]
[426908161,1783002666000,-151.0,0.00033778,7]
[426908179,1783002666000,-151.0,0.00033778,7]
[426908150,1783002666000,-157.710346,0.00033778,7]
[426908183,1783002666000,-151.0,0.00033778,7]
[426908204,1783002666000,-151.0,0.00033778,7]
[426908212,1783002666000,-1345.19,0.000338,20]
[426908180,1783002666000,-272.963666,0.00033778,7]
[426908206,1783002666000,-350.0,0.00033794,3]
[426908208,1783002666000,-1345.19,0.000338,20]
[426908209,1783002666000,-1345.19,0.000338,20]
[426908207,1783002666000,-1345.19,0.000338,20]
[426908217,1783002666000,-16916.23953937,0.0003384,2]
[426908220,1783002666000,-384.50318454,0.0003384,2]
[426908214,1783002666000,-564.5160121,0.000338,120]
[426908216,1783002666000,-17295.93874798,0.0003384,2]
[426908221,1783002666000,-2453.3665,0.0003384,2]
[426908218,1783002666000,-2744.23686277,0.0003384,2]